bitfinex-derivatives/quotes_SOLF0:USTF0_20250428
["timestamp","ask_amount","ask_price","bid_price","bid_amount"]
[1745846101908,33.2441,150.49,150.35,1.9762]
[1745846102109,6.6452,150.42,150.35,1.9762]
[1745846102703,6.6452,150.42,150.38,6.6465]
[1745846103008,6.6452,150.42,150.35,1.9762]
[1745846103307,6.6452,150.42,150.38,6.6466]
[1745846103608,6.6452,150.42,150.35,1.9762]
[1745846103908,6.6452,150.42,150.39,6.6461]
[1745846104110,6.6448,150.43,150.35,1.9762]
[1745846104310,33.2441,150.49,150.35,1.9762]
[1745846104514,33.2441,150.49,150.39,6.646]
[1745846104711,6.645,150.43,150.39,6.646]
[1745846105611,6.645,150.43,150.4,6.6458]
[1745846109915,6.6452,150.42,150.39,6.646]
[1745846110115,6.6452,150.42,150.35,1.9762]
[1745846110819,6.6448,150.43,150.4,6.6459]
[1745846112715,6.6451,150.42,150.4,6.6459]
[1745846113418,6.6447,150.43,150.4,6.6459]
[1745846114318,6.6451,150.42,150.4,6.6459]
[1745846115520,6.6448,150.43,150.4,6.6459]
[1745846116720,6.6451,150.42,150.4,6.6459]
[1745846117915,6.6448,150.43,150.4,6.6459]
[1745846118125,6.6448,150.43,150.41,6.6454]
[1745846118622,6.645,150.42,150.4,6.6457]
[1745846121919,6.6455,150.41,150.35,1.9762]
[1745846122222,33.2457,150.47,150.35,1.9762]
[1745846122827,6.6459,150.4,150.38,6.6465]
[1745846123023,13.2867,150.46,150.35,1.9762]
[1745846123225,19.96,150.46,150.34,4.12905]
[1745846124028,6.6463,150.4,150.37,6.647]
[1745846124928,6.6465,150.39,150.37,6.647]
[1745846125131,6.6465,150.39,150.34,3.8726]
[1745846125832,6.6461,150.4,150.37,6.647]
[1745846126127,33.2476,150.45,150.37,6.647]
[1745846127131,6.6463,150.4,150.37,6.647]
[1745846127535,6.6463,150.4,150.38,6.6468]
[1745846128036,6.6463,150.4,150.34,3.8726]
[1745846128833,6.6463,150.4,150.37,6.647]
[1745846133135,6.6456,150.41,150.38,6.6466]
[1745846133330,6.6456,150.41,150.34,3.8726]
[1745846134238,6.6456,150.41,150.39,6.6463]
[1745846134438,6.6452,150.42,150.34,3.8726]
[1745846135443,6.6452,150.42,150.39,6.6461]
[1745846136636,6.6455,150.41,150.38,6.6465]
[1745846138837,6.6459,150.4,150.38,6.6465]
[1745846139338,6.6457,150.41,150.38,6.6465]
[1745846140444,6.6461,150.4,150.37,6.647]
[1745846141937,19.96,150.45,150.34,3.8726]
[1745846142648,6.6472,150.37,150.35,6.648]
[1745846142842,33.2484,150.44,150.35,6.648]
[1745846143142,6.6471,150.38,150.35,6.648]
[1745846144338,6.6471,150.38,150.35,6.6478]
[1745846147848,6.6466,150.39,150.36,6.6476]
[1745846148049,6.6466,150.39,150.34,3.8726]
[1745846148248,33.2484,150.44,150.34,3.8726]
[1745846148548,6.6466,150.39,150.36,6.6476]
[1745846151350,33.2484,150.44,150.35,6.6481]
[1745846151351,6.6468,150.38,150.35,6.6481]
[1745846151951,6.6468,150.38,150.36,6.6476]
[1745846152552,6.6468,150.38,150.34,3.8726]
[1745846153252,6.6468,150.38,150.35,6.6479]
[1745846154454,6.6474,150.37,150.34,10.521]
[1745846154952,6.6477,150.36,150.34,3.8726]
[1745846155756,6.6477,150.36,150.34,10.5211]
[1745846156657,6.6474,150.37,150.34,10.5211]
[1745846158653,6.647,150.38,150.35,6.648]
[1745846158858,13.2884,150.44,150.34,3.8726]
[1745846159257,6.6461,150.4,150.37,6.6472]
[1745846159457,19.96,150.47,150.34,3.8726]
[1745846159758,6.6464,150.39,150.37,6.647]
[1745846160756,6.6468,150.38,150.36,6.6474]
[1745846163063,19.96,150.43,150.34,1.9588]
[1745846163465,19.96,150.43,150.31,2.20217]
[1745846163671,19.96,150.41,150.31,2.20217]
[1745846164667,6.6486,150.34,150.32,6.6492]
[1745846165570,6.6483,150.35,150.32,6.6492]
[1745846165768,6.6483,150.35,150.33,6.6489]
[1745846165966,6.6483,150.35,150.31,2.20217]
[1745846166164,33.2511,150.41,150.31,0.28537]
[1745846166768,6.6485,150.35,150.31,0.28537]
[1745846167075,33.2511,150.41,150.32,6.6494]
[1745846167267,6.6488,150.34,150.32,6.6494]
[1745846168067,6.6488,150.34,150.31,0.28537]
[1745846168068,33.2511,150.41,150.31,6.93507]
[1745846168369,33.2511,150.41,150.31,0.28537]
[1745846168794,6.6485,150.35,150.32,6.6491]
[1745846169067,33.2511,150.41,150.32,6.6491]
[1745846169369,6.6488,150.34,150.32,6.6491]
[1745846171669,6.649,150.33,150.31,6.93517]
[1745846171883,33.2519,150.4,150.31,0.28537]
[1745846172868,6.6487,150.34,150.32,6.6494]
[1745846177068,6.6488,150.34,150.32,6.6493]
[1745846177267,6.6483,150.35,150.32,6.6493]
[1745846177571,33.2519,150.4,150.32,6.6493]
[1745846178274,6.6488,150.34,150.32,6.6493]
[1745846178473,6.6488,150.34,150.31,6.6497]
[1745846179073,6.6488,150.34,150.32,6.6494]
[1745846180273,6.6488,150.34,150.31,6.6496]
[1745846181478,6.649,150.33,150.31,6.6496]
[1745846182274,19.96,150.39,150.25,2.35406]
[1745846182671,6.6516,150.28,150.25,9.00636]
[1745846182975,6.6516,150.28,150.25,2.35406]
[1745846183175,6.6516,150.28,150.26,6.652]
[1745846183677,6.6504,150.3,150.26,6.652]
[1745846184381,6.6504,150.3,150.25,9.00636]
[1745846184680,6.6504,150.3,150.25,2.35406]
[1745846185079,6.6504,150.3,150.26,6.6518]
[1745846185372,6.6501,150.31,150.25,2.35406]
[1745846185574,19.96,150.38,150.3,6.6501]
[1745846185978,6.6495,150.32,150.26,2.0085]
[1745846186179,6.6495,150.32,150.29,6.6505]
[1745846187482,6.65,150.31,150.28,6.651]
[1745846187978,0.3354,150.37,150.28,6.651]
[1745846188187,0.3354,150.37,150.27,6.6514]
[1745846188582,0.3354,150.37,150.26,8.6604]
[1745846188783,0.3354,150.37,150.26,2.0085]
[1745846189089,19.96,150.34,150.26,6.6518]
[1745846189587,6.651,150.29,150.27,6.6516]
[1745846190286,6.6514,150.28,150.26,6.6519]
[1745846190487,0.3354,150.37,150.25,0.30346]
[1745846190789,6.6507,150.3,150.27,6.6514]
[1745846191284,6.6508,150.29,150.27,6.6514]
[1745846191989,6.6515,150.28,150.26,6.6519]
[1745846193290,6.6509,150.29,150.26,6.6519]
[1745846194488,6.6505,150.3,150.25,0.30346]
[1745846194688,19.96,150.35,150.25,0.30346]
[1745846194991,6.6508,150.29,150.25,0.30346]
[1745846195387,6.6508,150.29,150.26,6.6518]
[1745846195892,6.6513,150.28,150.26,6.6518]
[1745846196191,6.6513,150.28,150.25,6.95576]
[1745846196592,6.6513,150.28,150.25,0.30346]
[1745846196793,6.6513,150.28,150.25,6.6523]
[1745846197188,13.2975,150.34,150.23,2.0256]
[1745846197388,19.96,150.34,150.23,8.6787]
[1745846197593,19.96,150.34,150.2,478.74]
[1745846197792,19.96,150.32,150.17,5.9281]
[1745846198093,0.3369,150.31,150.17,5.9281]
[1745846198288,6.654,150.22,150.19,6.655]
[1745846198592,19.96,150.29,150.19,6.655]
[1745846198793,19.96,150.29,150.17,5.9281]
[1745846199293,13.3007,150.3,150.17,5.9281]
[1745846199595,6.6527,150.25,150.22,6.6536]
[1745846200692,6.653,150.24,150.22,6.6536]
[1745846200992,0.3369,150.31,150.19,0.36861]
[1745846201588,0.3369,150.31,150.23,6.6531]
[1745846202494,6.6524,150.26,150.23,6.6531]
[1745846204598,6.6528,150.25,150.23,6.6534]
[1745846205902,6.653,150.24,150.22,6.6538]
[1745846206101,0.3369,150.31,150.19,0.36861]
[1745846206602,6.6532,150.24,150.22,6.6538]
[1745846207102,6.6532,150.24,150.19,0.36861]
[1745846207402,6.6532,150.24,150.21,6.6541]
[1745846207600,6.6532,150.24,150.19,0.36861]
[1745846207601,19.96,150.29,150.19,0.36861]
[1745846208701,19.96,150.27,150.19,0.36861]
[1745846209407,6.6547,150.2,150.19,0.36861]
[1745846212605,6.6545,150.21,150.19,0.36861]
[1745846214307,6.6547,150.2,150.19,0.36861]
[1745846214507,13.3035,150.27,150.19,0.36861]
[1745846214707,6.6546,150.21,150.19,0.36861]
[1745846215007,13.3035,150.27,150.19,0.36861]
[1745846215207,13.3035,150.27,150.18,6.6555]
[1745846215906,6.6546,150.21,150.18,6.6555]
[1745846216103,13.3035,150.27,150.18,6.6555]
[1745846216804,6.6548,150.2,150.18,6.6555]
[1745846218506,6.6548,150.2,150.17,6.6557]
[1745846218707,6.6548,150.2,150.13,3.8694]
[1745846218906,6.6548,150.2,150.18,6.6554]
[1745846220303,6.6545,150.21,150.19,6.6552]
[1745846220611,13.3035,150.27,150.13,3.8694]
[1745846220806,6.6546,150.21,150.13,3.8694]
[1745846221006,13.3035,150.27,150.18,6.6553]
[1745846221608,6.6551,150.2,150.18,6.6553]
[1745846221808,13.3035,150.27,150.19,6.6552]
[1745846222111,13.3035,150.27,150.13,3.8694]
[1745846222611,6.655,150.2,150.17,6.656]
[1745846222912,6.655,150.2,150.13,3.8694]
[1745846223612,6.6552,150.19,150.13,3.8694]
[1745846223812,13.3043,150.26,150.13,3.8694]
[1745846224006,13.3043,150.26,150.16,6.6562]
[1745846224213,19.96,150.27,150.16,6.6562]
[1745846224615,13.3051,150.25,150.17,6.6561]
[1745846224812,13.3051,150.25,150.13,3.8694]
[1745846225108,6.6555,150.19,150.13,3.8694]
[1745846225608,13.3051,150.25,150.13,3.8694]
[1745846225911,13.3051,150.25,150.17,6.6558]
[1745846227012,6.655,150.2,150.13,3.8694]
[1745846228314,6.655,150.2,150.18,6.6554]
[1745846228515,6.6544,150.21,150.13,3.8694]
[1745846228914,6.6544,150.21,150.18,6.6553]
[1745846229515,6.6549,150.2,150.18,6.6553]
[1745846229905,13.3051,150.25,150.18,6.6553]
[1745846230314,6.6545,150.21,150.18,6.6553]
[1745846231315,6.6548,150.2,150.18,6.6553]
[1745846232622,6.6545,150.21,150.18,6.6553]
[1745846233222,6.6542,150.22,150.13,3.8694]
[1745846233723,6.6542,150.22,150.19,6.6549]
[1745846234423,6.6544,150.21,150.19,6.6549]
[1745846234626,13.3025,150.28,150.2,6.6547]
[1745846234819,13.3025,150.28,150.13,3.8694]
[1745846235325,13.3025,150.28,150.14,13.3148]
[1745846235530,13.3025,150.28,150.15,1.9681]
[1745846236024,13.3025,150.28,150.2,6.6545]
[1745846236327,13.3025,150.28,150.15,1.9681]
[1745846236530,13.3025,150.28,150.18,6.6555]
[1745846237025,6.6546,150.21,150.15,1.9681]
[1745846237630,6.6541,150.22,150.19,6.6551]
[1745846238329,6.6544,150.21,150.19,6.6551]
[1745846238632,6.6544,150.21,150.18,6.6554]
[1745846238830,6.6544,150.21,150.15,1.9681]
[1745846239928,6.6544,150.21,150.18,6.6553]
[1745846240331,6.6544,150.21,150.15,1.9681]
[1745846240528,6.6541,150.22,150.15,1.9681]
[1745846240928,13.3025,150.28,150.15,1.9681]
[1745846241422,6.6546,150.21,150.19,6.6551]
[1745846241625,6.6546,150.21,150.15,1.9681]
[1745846241928,13.3025,150.28,150.15,1.9681]
[1745846242130,6.654,150.22,150.2,6.6547]
[1745846242430,20.2962,150.31,150.15,1.9681]
[1745846242627,6.653,150.24,150.15,1.9681]
[1745846242826,20.2962,150.31,150.15,1.9681]
[1745846243027,0.3362,150.31,150.16,1.21301053]
[1745846243234,6.6523,150.26,150.23,6.6532]
[1745846244230,6.6526,150.25,150.22,6.6537]
[1745846244730,6.6526,150.25,150.23,6.6533]
[1745846245629,6.6523,150.26,150.23,6.6533]
[1745846249138,6.6523,150.26,150.24,6.6529]
[1745846249333,6.6523,150.26,150.16,13.3128]
[1745846249725,19.9495,150.32,150.15,1.9681]
[1745846249925,20.2947,150.35,150.16,1.21286356]
[1745846250335,6.6515,150.28,150.25,6.6523]
[1745846252631,20.2947,150.35,150.2,1.9799]
[1745846252836,0.3347,150.35,150.2,1.9799]
[1745846253037,33.2581,150.33,150.2,1.9799]
[1745846253338,6.6528,150.25,150.22,6.6536]
[1745846253736,6.6523,150.26,150.23,6.6533]
[1745846253937,33.2581,150.33,150.2,1.9799]
[1745846254238,6.6522,150.26,150.23,6.6532]
[1745846254637,20.2947,150.35,150.2,1.9799]
[1745846255437,6.6516,150.28,150.24,6.6529]
[1745846255839,6.6516,150.28,150.2,1.9799]
[1745846256036,6.6516,150.28,150.25,6.6525]
[1745846257139,6.651,150.29,150.26,6.652]
[1745846257637,6.6513,150.28,150.26,6.652]
[1745846258240,6.6509,150.29,150.26,6.6518]
[1745846258435,6.6509,150.29,150.2,1.9799]
[1745846258933,6.6506,150.3,150.27,6.6516]
[1745846259237,13.2949,150.37,150.2,15.2889]
[1745846259437,6.6501,150.31,150.28,6.6509]
[1745846259938,6.6496,150.32,150.29,6.6507]
[1745846260330,13.2949,150.37,150.21,13.3085]
[1745846260738,6.65,150.31,150.28,6.651]
[1745846265637,6.65,150.31,150.21,13.3085]
[1745846265838,0.333,150.38,150.22,480.11244737]
[1745846265839,6.6488,150.34,150.22,480.11244737]
[1745846266037,6.6488,150.34,150.23,1.21244737]
[1745846266238,6.6488,150.34,150.31,6.6496]
[1745846268238,6.649,150.33,150.3,6.6501]
[1745846268438,0.333,150.38,150.3,6.6501]
[1745846268644,0.333,150.38,150.25,1.9539]
[1745846269145,19.96,150.37,150.24,4.0563]
[1745846269444,6.6506,150.3,150.27,6.6514]
[1745846269841,6.65,150.31,150.24,4.0563]
[1745846270343,6.65,150.31,150.28,6.651]
[1745846270846,6.65,150.31,150.24,4.0563]
[1745846271049,33.2549,150.37,150.24,4.0563]
[1745846271749,6.6502,150.31,150.28,6.6512]
[1745846275055,6.6502,150.31,150.29,6.6507]
[1745846275254,6.6497,150.32,150.29,6.6507]
[1745846275753,33.2549,150.37,150.29,6.6507]
[1745846276254,6.6501,150.31,150.28,6.651]
[1745846276455,0.333,150.38,150.24,4.0563]
[1745846276854,6.6501,150.31,150.28,6.6511]
[1745846277055,6.6501,150.31,150.24,4.0563]
[1745846277553,6.6496,150.32,150.24,4.0563]
[1745846277950,0.333,150.38,150.29,6.6505]
[1745846278150,6.6498,150.32,150.29,6.6505]
[1745846278450,0.333,150.38,150.29,6.6505]
[1745846280055,6.6501,150.31,150.29,6.6505]
[1745846281459,6.6503,150.3,150.28,6.651]
[1745846282061,6.6501,150.31,150.28,6.651]
[1745846282260,33.5868,150.38,150.24,4.0563]
[1745846282763,6.6499,150.31,150.29,6.6505]
[1745846282962,6.6499,150.31,150.24,4.0563]
[1745846283469,6.6499,150.31,150.28,6.651]
[1745846284266,6.6503,150.3,150.28,6.651]
[1745846284662,33.5868,150.38,150.24,4.0563]
[1745846284860,6.6495,150.32,150.25,1.9471]
[1745846285157,6.6495,150.32,150.29,6.6505]
[1745846286668,6.6499,150.31,150.29,6.6505]
[1745846288369,6.6496,150.32,150.29,6.6505]
[1745846288663,13.6268,150.38,150.25,1.9471]
[1745846288859,6.6488,150.34,150.25,1.9471]
[1745846289065,6.6488,150.34,150.32,6.6494]
[1745846290170,6.6488,150.34,150.31,6.6496]
[1745846290870,6.6488,150.34,150.25,1.9471]
[1745846291466,6.649,150.33,150.3,6.6501]
[1745846292266,6.6483,150.35,150.25,15.2519]
[1745846292770,13.2908,150.42,150.33,6.6487]
[1745846293168,6.6477,150.36,150.33,6.6487]
[1745846293364,6.6477,150.36,150.26,13.304]
[1745846294072,6.6477,150.36,150.27,1.21204281]
[1745846294369,6.6477,150.36,150.26,13.304]
[1745846294567,6.6477,150.36,150.27,1.21204281]
[1745846295174,6.6477,150.36,150.33,6.6487]
[1745846299369,6.6474,150.37,150.34,6.6485]
[1745846299574,13.2908,150.42,150.26,13.304]
[1745846299874,6.647,150.38,150.34,6.6483]
[1745846300375,13.2908,150.42,150.34,6.6483]
[1745846300571,6.6475,150.37,150.34,6.6483]
[1745846302274,6.6475,150.37,150.33,6.6487]
[1745846302474,13.2908,150.42,150.33,6.6487]
[1745846303276,6.6476,150.37,150.34,6.6485]
[1745846303969,13.2908,150.42,150.34,6.6485]
[1745846304175,6.6478,150.36,150.34,6.6485]
[1745846305075,6.6478,150.36,150.33,6.6487]
[1745846305375,6.6478,150.36,150.26,13.59359]
[1745846305575,6.6478,150.36,150.33,6.6485]
[1745846306176,6.6478,150.36,150.34,6.6485]
[1745846306578,6.6474,150.37,150.34,6.6485]
[1745846307478,6.6477,150.36,150.34,6.6485]
[1745846308578,6.6474,150.37,150.34,6.6485]
[1745846308880,13.2908,150.42,150.34,6.6485]
[1745846309781,6.6477,150.36,150.34,6.6485]
[1745846310881,6.6474,150.37,150.34,6.6485]
[1745846311581,6.6474,150.37,150.35,6.6481]
[1745846312189,0.3318,150.43,150.26,0.28959]
[1745846312380,0.3318,150.43,150.27,1.21191196]
[1745846312678,6.6465,150.39,150.27,1.21191196]
[1745846312883,6.6465,150.39,150.36,6.6475]
[1745846315882,13.2871,150.46,150.38,6.6467]
[1745846316089,19.95,150.47,150.32,13.2989]
[1745846316283,479.0107,150.48,150.31,6.2129]
[1745846316484,6.6448,150.43,150.4,6.6457]
[1745846317188,6.645,150.42,150.4,6.6457]
[1745846317390,6.645,150.42,150.39,6.6461]
[1745846321491,6.645,150.42,150.4,6.6459]
[1745846321885,6.645,150.42,150.39,6.6461]
[1745846322089,6.6455,150.41,150.33,13.2979]
[1745846322587,6.6455,150.41,150.38,6.6464]
[1745846323584,6.6455,150.41,150.33,13.2979]
[1745846324789,6.6452,150.42,150.33,13.2979]
[1745846325191,6.6452,150.42,150.39,6.6461]
[1745846325386,6.6455,150.41,150.39,6.6461]
[1745846325586,498.9607,150.48,150.39,6.6461]
[1745846325895,6.6452,150.42,150.39,6.6461]
[1745846326895,6.6449,150.43,150.33,13.2979]
[1745846327589,6.6449,150.43,150.4,6.6456]
[1745846327796,6.6449,150.43,150.33,13.2979]
[1745846328396,6.6444,150.44,150.33,13.2979]
[1745846328695,498.63,150.48,150.33,13.2979]
[1745846328896,6.6453,150.42,150.33,13.2979]
[1745846329194,498.63,150.48,150.33,13.2979]
[1745846329396,498.63,150.48,150.39,6.6459]
[1745846329596,498.63,150.48,150.33,13.2979]
[1745846329995,6.645,150.43,150.33,13.2979]
[1745846330599,6.645,150.43,150.4,6.6459]
[1745846330996,6.6451,150.42,150.4,6.6459]
[1745846331599,6.6451,150.42,150.39,6.6461]
[1745846333502,6.6451,150.42,150.4,6.6459]
[1745846336905,6.6448,150.43,150.4,6.6459]
[1745846337503,6.6448,150.43,150.41,6.6453]
[1745846337706,6.6448,150.43,150.34,13.2971]
[1745846338311,498.63,150.48,150.34,13.2971]
[1745846338312,6.6443,150.44,150.34,13.2971]
[1745846338611,6.6443,150.44,150.41,6.6451]
[1745846339612,6.6446,150.43,150.41,6.6451]
[1745846339807,6.6446,150.43,150.34,13.2971]
[1745846340009,6.6446,150.43,150.4,6.6457]
[1745846340913,6.6443,150.44,150.41,6.6454]
[1745846342114,6.6446,150.43,150.41,6.6454]
[1745846342712,6.6446,150.43,150.34,13.2971]
[1745846342914,6.6444,150.44,150.34,13.2971]
[1745846343715,6.6444,150.44,150.41,6.6454]
[1745846345314,6.6444,150.44,150.4,6.6457]
[1745846345811,6.6444,150.44,150.34,13.2971]
[1745846346016,6.6444,150.44,150.41,6.6454]
[1745846349116,19.95,150.5,150.34,13.2971]
[1745846349412,19.95,150.5,150.31,6.2129]
[1745846349413,19.95,150.49,150.31,6.2129]
[1745846349718,6.6463,150.39,150.31,6.2129]
[1745846349918,19.95,150.47,150.31,6.2129]
[1745846350115,0.3292,150.46,150.31,6.2129]
[1745846350315,6.6463,150.4,150.37,6.647]
[1745846351519,6.6463,150.39,150.31,6.2129]
[1745846351818,0.3292,150.46,150.31,6.2129]
[1745846352119,6.6472,150.37,150.35,6.6479]
[1745846352317,0.3292,150.46,150.35,6.6479]
[1745846352715,6.6471,150.38,150.36,6.6476]
[1745846352916,6.6471,150.38,150.31,6.2129]
[1745846353423,6.6466,150.39,150.36,6.6476]
[1745846353927,0.3292,150.46,150.36,6.6476]
[1745846354623,6.6466,150.39,150.36,6.6476]
[1745846354817,0.3292,150.46,150.31,6.2129]
[1745846355322,6.6461,150.4,150.37,6.647]
[1745846356816,6.6461,150.4,150.38,6.6468]
[1745846357119,6.6461,150.4,150.31,6.2129]
[1745846357321,6.6461,150.4,150.37,6.647]
[1745846357824,6.6464,150.39,150.37,6.647]
[1745846358017,6.6464,150.39,150.36,6.6475]
[1745846358224,6.6464,150.39,150.31,6.2129]
[1745846358624,0.3292,150.46,150.31,6.2129]
[1745846358821,0.3292,150.46,150.32,13.2985]
[1745846359123,6.6448,150.43,150.4,6.6458]
[1745846360119,6.645,150.42,150.4,6.6458]
[1745846360423,33.2349,150.48,150.4,6.6458]
[1745846360826,6.6448,150.43,150.4,6.6458]
[1745846364124,6.6448,150.43,150.41,6.6454]
[1745846365325,6.6448,150.43,150.4,6.6457]
[1745846365626,6.6448,150.43,150.41,6.6454]
[1745846365828,6.6444,150.44,150.41,6.6454]
[1745846366129,20.2802,150.5,150.42,6.6446]
[1745846366326,6.6439,150.45,150.42,6.6446]
[1745846368226,0.3302,150.5,150.41,6.6452]
[1745846368627,6.6435,150.46,150.36,5.9556]
[1745846368928,0.3302,150.5,150.36,5.9556]
[1745846369127,6.6439,150.45,150.42,6.6446]
[1745846369630,6.6434,150.46,150.43,6.6443]
[1745846369929,6.6434,150.46,150.36,5.9556]
[1745846370128,6.6434,150.46,150.43,6.6443]
[1745846371032,6.6438,150.45,150.43,6.6443]
[1745846371226,6.6438,150.45,150.42,6.6449]
[1745846371529,19.95,150.51,150.36,5.9556]
[1745846371728,6.6435,150.46,150.43,6.6445]
[1745846372130,19.95,150.51,150.36,5.9556]
[1745846372334,6.6438,150.45,150.42,6.6447]
[1745846372534,6.6438,150.45,150.36,5.9556]
[1745846372926,6.6438,150.45,150.42,6.6447]
[1745846375330,6.6433,150.46,150.36,5.9556]
[1745846375632,6.6433,150.46,150.37,1.21123849]
[1745846375838,6.6433,150.46,150.43,6.6442]
[1745846376227,6.6433,150.46,150.36,5.9556]
[1745846376531,6.6433,150.46,150.37,1.21121373]
[1745846376831,19.95,150.53,150.37,1.21121373]
[1745846377130,19.95,150.53,150.43,6.6443]
[1745846377331,6.6434,150.46,150.43,6.6443]
[1745846377530,6.6434,150.46,150.36,5.9556]
[1745846377734,19.95,150.53,150.44,6.6441]
[1745846377935,6.643,150.47,150.44,6.6441]
[1745846378632,6.6426,150.48,150.45,6.6436]
[1745846378936,33.2282,150.56,150.36,5.9556]
[1745846379133,6.6408,150.52,150.48,6.642]
[1745846379434,19.95,150.61,150.44,478.38]
[1745846379629,0.3282,150.6,150.49,6.6417]
[1745846379931,0.3282,150.6,150.44,478.38]
[1745846380232,0.3282,150.6,150.49,6.6418]
[1745846380432,6.6404,150.53,150.49,6.6418]
[1745846380831,2.3915,150.59,150.49,6.6418]
[1745846381734,6.6407,150.52,150.49,6.6418]
[1745846381939,2.3915,150.59,150.49,6.6418]
[1745846382134,2.3915,150.59,150.48,6.6423]
[1745846382334,2.3915,150.59,150.44,478.38]
[1745846382635,2.3915,150.59,150.48,6.6423]
[1745846383635,2.3915,150.59,150.44,478.38]
[1745846383636,19.95,150.57,150.44,478.38]
[1745846383939,19.95,150.57,150.42,5.9838]
[1745846384536,6.6416,150.5,150.42,5.9838]
[1745846385635,6.6412,150.51,150.42,5.9838]
[1745846385934,19.95,150.57,150.42,5.9838]
[1745846386235,13.276,150.58,150.42,5.9838]
[1745846386236,6.6403,150.53,150.5,6.6415]
[1745846386437,2.3915,150.59,150.42,5.9838]
[1745846386836,6.6402,150.53,150.5,6.6412]
[1745846388435,6.6406,150.52,150.49,6.6418]
[1745846389539,6.6404,150.53,150.5,6.6413]
[1745846390641,6.6398,150.54,150.51,6.641]
[1745846390839,2.3915,150.59,150.43,13.2887]
[1745846391244,6.6397,150.54,150.43,13.2887]
[1745846391938,6.6397,150.54,150.51,6.6407]
[1745846392436,6.6394,150.55,150.52,6.6404]
[1745846393140,6.6394,150.55,150.43,13.2887]
[1745846393141,2.3915,150.59,150.43,13.2887]
[1745846393341,6.64,150.54,150.51,6.6408]
[1745846394342,6.6402,150.53,150.51,6.6408]
[1745846394542,6.6402,150.53,150.5,6.6413]
[1745846399046,6.6402,150.53,150.43,13.2887]
[1745846399047,6.6402,150.53,150.51,6.641]
[1745846399748,6.6402,150.53,150.43,13.2887]
[1745846399749,6.6402,150.53,150.5,6.6412]
[1745846400045,6.6399,150.54,150.43,13.2887]
[1745846400246,6.6399,150.54,150.44,1.21068455]
[1745846400446,6.6399,150.54,150.5,6.6412]
[1745846400747,2.3915,150.59,150.43,13.2887]
[1745846401343,6.6407,150.52,150.49,6.6416]
[1745846401543,2.3915,150.59,150.43,13.2887]
[1745846401849,6.6404,150.53,150.5,6.6413]
[1745846405448,6.6404,150.53,150.51,6.641]
[1745846405748,6.6399,150.54,150.51,6.641]
[1745846407750,6.6402,150.53,150.51,6.641]
[1745846407953,6.6402,150.53,150.5,6.6413]
[1745846408651,6.6402,150.53,150.51,6.6409]
[1745846409045,6.6399,150.54,150.51,6.6409]
[1745846409251,2.0749,150.59,150.51,6.6409]
[1745846409657,6.6401,150.54,150.51,6.6409]
[1745846410652,6.6401,150.54,150.44,13.2876]
[1745846411252,6.6401,150.54,150.51,6.6408]
[1745846412551,6.6401,150.54,150.5,6.6412]
[1745846412954,6.6401,150.54,150.44,13.2876]
[1745846413257,6.6401,150.54,150.51,6.641]
[1745846413655,6.6395,150.55,150.45,13.2873]
[1745846413855,6.6395,150.55,150.52,6.6404]